lending/lending_fUSD_20240830
["ID","MTS","AMOUNT","RATE_DAILY","PERIOD"]
[336663814,1725004232736,-4000.0,0.00019447,30]
[336663815,1725004232747,-1167.27,0.00019713,2]
[336663817,1725004232756,-250.0,0.00019885,2]
[336663819,1725004232766,-164.776221,0.000199,3]
[336663820,1725004232775,-1500.0,0.00019903,2]
[336663821,1725004232785,-156.83,0.00019961,2]
[336663822,1725004232794,-500.0,0.0002,11]
[336663823,1725004232803,-450.0,0.0002,2]
[336663824,1725004232813,-5059.20137002,0.00020044,2]
[336663825,1725004233786,-654.23195264,0.00020044,2]
[336663826,1725004233802,-1000.0,0.00018088,2]
[336663827,1725004233812,-8020.83523119,0.00020044,2]
[336663828,1725004233824,-598.21404,0.00020044,2]
[336663829,1725004233840,-2019.02952842,0.00020044,2]
[336663839,1725004238406,-500.0,0.0001754,2]
[336663840,1725004238415,-19.07829482,0.00018986,2]
[336663841,1725004238460,-1004.42077093,0.00018986,2]
[336663842,1725004238471,-476.50093425,0.00018986,2]
[336663843,1725004238480,-172.29,0.00019634,2]
[336663844,1725004238490,-7397.69249124,0.00020044,2]
[336663845,1725004238506,-150.79538649,0.00020044,2]
[336663846,1725004238516,-2000.0,0.00020091,2]
[336663847,1725004238525,-250.0,0.00020098,2]
[336663848,1725004238534,-200.0,0.0002011,2]
[336663849,1725004238543,-211.49,0.00020116,2]
[336663850,1725004238552,-194.13,0.00020126,2]
[336663851,1725004238562,-200.0,0.00020145,2]
[336663852,1725004238571,-250.0,0.00020207,2]
[336663853,1725004238581,-500.0,0.00020467,2]
[336663854,1725004238590,-173.07,0.00020541,2]
[336663855,1725004238599,-173.07,0.00020546,2]
[336663856,1725004238608,-173.07,0.00020552,2]
[336663857,1725004238618,-173.07,0.00020557,2]
[336663858,1725004238628,-173.07,0.00020563,2]
[336663859,1725004238637,-173.07,0.00020568,2]
[336663860,1725004238647,-173.07,0.00020573,2]
[336663861,1725004238656,-173.07,0.00020579,2]
[336663862,1725004238666,-173.07,0.00020584,2]
[336663863,1725004238676,-173.07,0.0002059,2]
[336663864,1725004238685,-588.54,0.00020592,2]
[336663865,1725004238694,-173.07,0.00020595,2]
[336663866,1725004238703,-160.76072619,0.000206,2]
[336663867,1725004238713,-173.07,0.000206,2]
[336663868,1725004238723,-173.07,0.00020606,2]
[336663869,1725004238733,-173.07,0.00020611,2]
[336663870,1725004238742,-173.07,0.00020616,2]
[336663871,1725004238752,-173.07,0.00020622,2]
[336663872,1725004238761,-173.07,0.00020627,2]
[336663873,1725004238770,-173.07,0.00020633,2]
[336663874,1725004238779,-173.07,0.00020638,2]
[336663875,1725004238788,-173.07,0.00020643,2]
[336663876,1725004238798,-434.52231381,0.00020695,2]
[336663877,1725004238807,-500.0,0.00021,12]
[336663878,1725004238816,-800.0,0.00021133,2]
[336663879,1725004238825,-384.97970521,0.00021356,2]
[336663880,1725004238837,-812.86059119,0.00021356,2]
[336663881,1725004238851,-1302.1597036,0.00021356,2]
[336663883,1725004238860,-157.56,0.00021378,2]
[336663885,1725004238869,-488.08,0.00021589,30]
[336663887,1725004238880,-152.05,0.00021918,2]
[336663889,1725004238889,-512.13,0.00021918,2]
[336663891,1725004238898,-250.12280596,0.00022,13]
[336663911,1725004239092,-249.87719404,0.00022,13]
[336663913,1725004239102,-500.0,0.00022,2]
[336663915,1725004239111,-56.95161908,0.00022662,2]
[336663918,1725004239122,-794.86802,0.00022662,2]
[336663920,1725004239134,-2828.85036092,0.00022662,2]
[336663922,1725004239143,-200.0,0.00022664,2]
[336663924,1725004239153,-1317.62873236,0.00022755,2]
[336663926,1725004239162,-588.54,0.00022856,2]
[336663928,1725004239172,-500.0,0.00023,14]
[336663930,1725004239181,-180.0,0.00023205,2]
[336663932,1725004239190,-172.88,0.00023397,2]
[336663934,1725004239200,-3710.68,0.00023568,2]
[336663936,1725004239209,-283.52,0.00023642,2]
[336663938,1725004239219,-152.05,0.00023744,2]
[336663940,1725004239228,-800.0,0.00023775,2]
[336663942,1725004239238,-327.29581209,0.00023786,2]
[336663944,1725004239247,-500.0,0.00024,15]
[336663946,1725004239258,-4200.0,0.00024088,2]
[336663948,1725004239267,-327.29581209,0.00024088,2]
[336663950,1725004239276,-2600.0,0.00024154,2]
[336663952,1725004239285,-2600.0,0.00024156,2]
[336663954,1725004239294,-500.0,0.00024169,2]
[336663956,1725004239304,-327.2958121,0.00024179,2]
[336663957,1725004239314,-1141.9473,0.0002422,2]
[336663959,1725004239323,-296.98310574,0.0002422,2]
[336663961,1725004239332,-1257.5934,0.0002422,2]
[336663963,1725004239341,-500.0,0.00024256,2]
[336663965,1725004239351,-1200.0,0.00024262,2]
[336663967,1725004239360,-296.98310568,0.00024288,2]
[336663969,1725004239369,-155.21201228,0.000243,2]
[336663971,1725004239379,-448.48,0.0002431,3]
[336663973,1725004239388,-293.66064152,0.00024318,2]
[336663975,1725004239398,-36918.0428,0.0002432,2]
[336663977,1725004239407,-56734.209,0.0002432,2]
[336663979,1725004239417,-1082.6751,0.0002432,2]
[336663981,1725004239426,-1000.0,0.0002432,2]
[336663983,1725004239435,-39229.3798,0.0002432,2]
[336663985,1725004239444,-4870.9752,0.0002432,2]
[336663987,1725004239453,-540.26226303,0.00024323,2]
[336663989,1725004239463,-296.98310568,0.00024356,2]
[336663991,1725004239472,-150.0,0.00024396,2]
[336663993,1725004239481,-929.81036624,0.00024409,2]
[336663996,1725004239491,-458.44182,0.0002441,2]
[336663998,1725004239501,-70045.93897711,0.00024419,61]
[336664000,1725004239511,-185123.72576949,0.0002442,2]
[336664001,1725004239521,-1500.0,0.00024423,2]
[336664002,1725004239530,-296.98310568,0.00024424,2]
[336664003,1725004239539,-200.0,0.00024439,2]
[336664004,1725004239548,-150.0,0.0002446,2]
[336664005,1725004239558,-600.43521215,0.00024473,2]
[336664006,1725004239567,-1200.0,0.00024483,2]
[336664007,1725004239577,-296.98310568,0.00024492,2]
[336664008,1725004239586,-1249.99683871,0.00024493,2]
[336664009,1725004239595,-500.0,0.00024518,2]
[336664010,1725004239604,-1500.0,0.00024521,2]
[336664011,1725004239613,-500.0,0.00024557,2]
[336664012,1725004239622,-7500.0,0.00024557,2]
[336664013,1725004239631,-296.98310568,0.00024559,2]
[336664014,1725004239641,-1500.0,0.00024564,2]
[336664015,1725004239650,-150.0,0.00024572,2]
[336664016,1725004239660,-150.0,0.00024588,2]
[336664018,1725004239669,-150.0,0.00024597,2]
[336664019,1725004239678,-1925.0,0.000246,2]
[336664021,1725004239687,-700.0,0.00024611,2]
[336664023,1725004239697,-296.98310568,0.00024627,2]
[336664025,1725004239706,-150.0,0.00024629,2]
[336664027,1725004239716,-151.54817037,0.00024646,2]
[336664029,1725004239725,-163.34208763,0.00024654,2]
[336664031,1725004239735,-78808.7537689,0.00024655,2]
[336664033,1725004239744,-5127.6288034,0.00024655,2]
[336664035,1725004239754,-290.89092931,0.00024657,4]
[336664037,1725004239763,-12024.37,0.00024657,4]
[336664039,1725004239773,-12024.37,0.00024657,4]
[336664041,1725004239782,-12024.37,0.00024657,4]
[336664043,1725004239791,-12024.37,0.00024657,4]
[336664045,1725004239801,-12024.37,0.00024657,4]
[336664047,1725004239811,-500.0,0.00024657,4]
[336664048,1725004239821,-500.0,0.00024657,4]
[336664050,1725004239830,-12024.37,0.00024657,4]
[336664052,1725004239844,-500.0,0.00024657,4]
[336664054,1725004239853,-12024.37,0.00024657,4]
[336664056,1725004239862,-500.0,0.00024657,4]
[336664058,1725004239872,-12024.37,0.00024657,4]
[336664060,1725004239882,-500.0,0.00024657,4]
[336664062,1725004239891,-12024.37,0.00024657,4]
[336664064,1725004239901,-12024.37,0.00024657,4]
[336664066,1725004239911,-500.0,0.00024657,4]
[336664068,1725004239922,-12024.37,0.00024657,4]
[336664070,1725004239932,-500.0,0.00024657,4]
[336664072,1725004239941,-12024.37,0.00024657,4]
[336664075,1725004239951,-500.0,0.00024657,4]
[336664076,1725004239960,-9208.69299958,0.00024657,4]
[336664079,1725004239975,-2815.67700042,0.00024657,4]
[336664081,1725004239984,-500.0,0.00024657,4]
[336664083,1725004239994,-500.0,0.00024657,4]
[336664085,1725004240004,-500.0,0.00024657,4]
[336664087,1725004240013,-500.0,0.00024657,4]
[336664089,1725004240022,-540.99575088,0.00024657,4]
[336664091,1725004240031,-500.0,0.00024657,4]
[336664093,1725004240041,-500.0,0.00024657,4]
[336664095,1725004240050,-500.0,0.00024657,4]
[336664097,1725004240060,-500.0,0.00024657,4]
[336664099,1725004240069,-500.0,0.00024657,4]
[336664101,1725004240078,-160.46568479,0.00024657,4]
[336664103,1725004240091,-363.37057217,0.00024657,4]
[336664105,1725004240100,-500.0,0.00024657,4]
[336664107,1725004240110,-500.0,0.00024657,4]
[336664109,1725004240119,-359.03787577,0.00024657,4]
[336664111,1725004240130,-140.96212423,0.00024657,4]
[336664113,1725004240139,-500.0,0.00024657,4]
[336664115,1725004240148,-500.0,0.00024657,4]
[336664117,1725004240157,-125.18787581,0.00024657,4]
[336664119,1725004240169,-308.66866659,0.00024657,4]
[336664122,1725004240180,-73.40609847,0.00024657,4]
[336664124,1725004240189,-331.23535724,0.00024657,4]
[336664126,1725004240201,-168.76464276,0.00024657,4]
[336664127,1725004240210,-500.0,0.00024657,4]
[336664129,1725004240219,-500.0,0.00024657,4]
[336664131,1725004240229,-514.27202013,0.00024657,4]
[336664133,1725004240238,-500.0,0.00024657,4]
[336664135,1725004240248,-500.0,0.00024657,4]
[336664137,1725004240259,-500.0,0.00024657,4]
[336664139,1725004240269,-317.48093952,0.00024657,4]
[336664142,1725004240281,-182.51906048,0.00024657,4]
[336664143,1725004240291,-395.90902969,0.00024657,4]
[336664145,1725004240301,-287.26190983,0.00024657,4]
[336664148,1725004240320,-214.3190154,0.00024657,4]
[336664150,1725004240329,-183.40320706,0.00024657,4]
[336664151,1725004240430,-316.59679294,0.00024657,4]
[336664152,1725004240440,-254.37720706,0.00024657,4]
[336664153,1725004240452,-245.62279294,0.00024657,4]
[336664154,1725004240461,-500.0,0.00024657,4]
[336664155,1725004240471,-379.39385818,0.00024657,4]
[336664156,1725004240483,-120.60614182,0.00024657,4]
[336664157,1725004240492,-204.96587764,0.00024657,4]
[336664158,1725004240505,-295.03412236,0.00024657,4]
[336664159,1725004240514,-56.2581178,0.00024657,4]
[336664160,1725004240526,-443.7418822,0.00024657,4]
[336664161,1725004240535,-500.0,0.00024657,4]
[336664162,1725004240545,-500.02776663,0.00024657,4]
[336664163,1725004240554,-177.13,0.00024657,4]
[336664164,1725004240563,-301.52290579,0.00024657,4]
[336664165,1725004240579,-205.14638642,0.00024657,4]
[336664166,1725004240588,-500.0,0.00024657,4]
[336664167,1725004240598,-500.0,0.00024657,4]
[336664168,1725004240608,-500.0,0.00024657,4]
[336664169,1725004240617,-500.0,0.00024657,4]
[336664170,1725004240627,-500.0,0.00024657,4]
[336664171,1725004240637,-519.22895373,0.00024657,4]
[336664172,1725004240646,-500.0,0.00024657,4]
[336664173,1725004240656,-500.0,0.00024657,4]
[336664174,1725004240666,-504.0355408,0.00024657,4]
[336664175,1725004240675,-502.82546733,0.00024657,4]
[336664176,1725004240685,-500.0,0.00024657,4]
[336664177,1725004240694,-500.0,0.00024657,4]
[336664178,1725004240704,-500.0,0.00024657,4]
[336664179,1725004240713,-500.0,0.00024657,4]
[336664180,1725004240722,-32.61284483,0.00024657,4]
[336664181,1725004240735,-467.38715517,0.00024657,4]
[336664182,1725004240745,-500.0,0.00024657,4]
[336664183,1725004240755,-500.0,0.00024657,4]
[336664184,1725004240763,-500.0,0.00024657,4]
[336664185,1725004240773,-500.0,0.00024657,4]
[336664186,1725004240782,-500.0,0.00024657,4]
[336664187,1725004240791,-500.0,0.00024657,4]
[336664188,1725004240800,-334.24267194,0.00024657,4]
[336664189,1725004240809,-537.05417819,0.00024657,4]
[336664190,1725004240818,-500.0,0.00024657,4]
[336664191,1725004240827,-500.0,0.00024657,4]
[336664192,1725004240838,-504.2001927,0.00024657,4]
[336664193,1725004240850,-507.30372541,0.00024657,4]
[336664195,1725004240859,-500.0,0.00024657,4]
[336664196,1725004240869,-500.0,0.00024657,4]
[336664197,1725004240879,-500.0,0.00024657,4]
[336664198,1725004240888,-285.37167589,0.00024657,4]
[336664199,1725004240897,-500.0,0.00024657,4]
[336664200,1725004240906,-588.81443285,0.00024657,4]
[336664201,1725004240917,-438.87,0.00024657,4]
[336664202,1725004240926,-500.0,0.00024657,4]
[336664203,1725004240936,-842.82,0.00024657,4]
[336664204,1725004240945,-842.82,0.00024657,4]
[336664205,1725004240955,-842.82,0.00024657,4]
[336664206,1725004240965,-842.82,0.00024657,4]
[336664207,1725004240974,-842.82,0.00024657,4]
[336664208,1725004240984,-842.82,0.00024657,4]
[336664209,1725004240993,-842.82,0.00024657,4]
[336664210,1725004241003,-842.82,0.00024657,4]
[336664211,1725004241013,-842.82,0.00024657,4]
[336664212,1725004241022,-842.82,0.00024657,4]
[336664213,1725004241032,-842.82,0.00024657,4]
[336664214,1725004241042,-842.82,0.00024657,4]
[336664215,1725004241051,-842.82,0.00024657,4]
[336664216,1725004241061,-842.82,0.00024657,4]
[336664217,1725004241070,-842.82,0.00024657,4]
[336664218,1725004241079,-842.82,0.00024657,4]
[336664219,1725004241089,-842.82,0.00024657,4]
[336664220,1725004241098,-842.82,0.00024657,4]
[336664221,1725004241108,-842.82,0.00024657,4]
[336664222,1725004241118,-500.0,0.00024657,4]
[336664223,1725004241127,-166.59318788,0.00024657,4]
[336664224,1725004241144,-333.40681212,0.00024657,4]
[336664225,1725004241154,-262.30848848,0.00024657,4]
[336664226,1725004241166,-237.69151152,0.00024657,4]
[336664227,1725004241176,-306.79060958,0.00024657,4]
[336664228,1725004241189,-193.20939042,0.00024657,4]
[336664229,1725004241198,-500.0,0.00024657,4]
[336664230,1725004241208,-500.0,0.00024657,4]
[336664231,1725004241218,-500.0,0.00024657,4]
[336664232,1725004241227,-256.79060958,0.00024657,4]
[336664233,1725004241239,-243.20939042,0.00024657,4]
[336664234,1725004241249,-500.0,0.00024657,4]
[336664235,1725004241259,-500.0,0.00024657,4]
[336664236,1725004241269,-500.0,0.00024657,4]
[336664237,1725004241279,-500.0,0.00024657,4]
[336664238,1725004241288,-500.0,0.00024657,4]
[336664239,1725004241298,-500.0,0.00024657,4]
[336664240,1725004241307,-500.0,0.00024657,4]
[336664241,1725004241316,-500.0,0.00024657,4]
[336664242,1725004241325,-220.07239334,0.00024657,4]
[336664243,1725004241338,-279.92760666,0.00024657,4]
[336664244,1725004241347,-500.0,0.00024657,4]
[336664245,1725004241356,-462.20412475,0.00024657,4]
[336664246,1725004241375,-37.79587525,0.00024657,4]
[336664247,1725004241384,-500.0,0.00024657,4]
[336664248,1725004241394,-320.34707781,0.00024657,4]
[336664249,1725004241405,-179.65292219,0.00024657,4]
[336664250,1725004241415,-394.38066699,0.00024657,4]
[336664259,1725004243426,-4986.28499988,0.00012235,2]
[336664260,1725004243439,-1160.60801783,0.00012235,2]
[336664261,1725004243451,-15328.96751851,0.00012235,2]
[336664262,1725004243463,-105.61933301,0.00024657,4]
[336664263,1725004243472,-500.0,0.00024657,4]
[336664264,1725004243482,-500.0,0.00024657,4]
[336664265,1725004243491,-500.0,0.00024657,4]
[336664266,1725004243500,-500.0,0.00024657,4]
[336664267,1725004243511,-500.0,0.00024657,4]
[336664268,1725004243520,-500.0,0.00024657,4]
[336664269,1725004243529,-500.0,0.00024657,4]
[336664270,1725004243539,-500.0,0.00024657,4]
[336664271,1725004243548,-459.9638848,0.00024657,4]
[336664272,1725004243558,-500.0,0.00024657,4]
[336664273,1725004243567,-500.0,0.00024657,4]
[336664274,1725004243577,-500.0,0.00024657,4]
[336664275,1725004243586,-500.0,0.00024657,4]
[336664276,1725004243596,-500.0,0.00024657,4]
[336664277,1725004243605,-500.0,0.00024657,4]
[336664278,1725004243614,-500.0,0.00024657,4]
[336664279,1725004243624,-504.75945052,0.00024657,4]
[336664280,1725004243634,-500.0,0.00024657,4]
[336664281,1725004243643,-613.56867758,0.00024657,4]
[336664282,1725004243653,-500.0,0.00024657,4]
[336664283,1725004243662,-500.0,0.00024657,4]
[336664284,1725004243671,-500.0,0.00024657,4]
[336664285,1725004243681,-500.0,0.00024657,4]
[336664286,1725004243690,-500.0,0.00024657,4]
[336664287,1725004243700,-500.0,0.00024657,4]
[336664289,1725004243709,-500.0,0.00024657,4]
[336664294,1725004243984,-500.0,0.00024657,4]
[336664295,1725004243994,-500.0,0.00024657,4]
[336664296,1725004244003,-500.0,0.00024657,4]
[336664297,1725004244014,-500.0,0.00024657,4]
[336664298,1725004244023,-500.0,0.00024657,4]
[336664299,1725004244033,-500.0,0.00024657,4]
[336664300,1725004244042,-500.0,0.00024657,4]
[336664301,1725004244052,-500.0,0.00024657,4]
[336664302,1725004244061,-166.05124548,0.00024657,4]
[336664303,1725004244071,-500.0,0.00024657,4]
[336664304,1725004244081,-500.0,0.00024657,4]
[336664305,1725004244091,-500.0,0.00024657,4]
[336664306,1725004244101,-500.0,0.00024657,4]
[336664307,1725004244110,-500.0,0.00024657,4]
[336664308,1725004244120,-500.0,0.00024657,4]
[336664309,1725004244129,-500.0,0.00024657,4]
[336664310,1725004244139,-500.0,0.00024657,4]
[336664311,1725004244148,-500.0,0.00024657,4]
[336664312,1725004244158,-500.0,0.00024657,4]
[336664313,1725004244167,-500.0,0.00024657,4]
[336664314,1725004244177,-415.64850683,0.00024657,4]
[336664315,1725004244187,-500.0,0.00024657,4]
[336664316,1725004244196,-500.0,0.00024657,4]
[336664317,1725004244206,-500.0,0.00024657,4]
[336664318,1725004244215,-500.0,0.00024657,4]
[336664319,1725004244224,-500.0,0.00024657,4]
[336664320,1725004244234,-500.0,0.00024657,4]
[336664321,1725004244243,-500.0,0.00024657,4]
[336664322,1725004244253,-500.0,0.00024657,4]
[336664323,1725004244262,-500.0,0.00024657,4]
[336664324,1725004244272,-876.21,0.00024657,4]
[336664325,1725004244281,-876.21,0.00024657,4]
[336664326,1725004244291,-876.21,0.00024657,4]
[336664327,1725004244300,-876.21,0.00024657,4]
[336664328,1725004244309,-876.21,0.00024657,4]
[336664329,1725004244318,-876.21,0.00024657,4]
[336664330,1725004244328,-876.21,0.00024657,4]
[336664331,1725004244337,-876.21,0.00024657,4]
[336664332,1725004244347,-876.21,0.00024657,4]
[336664333,1725004244356,-876.21,0.00024657,4]
[336664334,1725004244366,-876.21,0.00024657,4]
[336664335,1725004244375,-876.21,0.00024657,4]
[336664336,1725004244384,-876.21,0.00024657,4]
[336664337,1725004244393,-876.21,0.00024657,4]
[336664338,1725004244403,-876.21,0.00024657,4]
[336664339,1725004244412,-876.21,0.00024657,4]
[336664340,1725004244421,-876.21,0.00024657,4]
[336664341,1725004244431,-876.21,0.00024657,4]
[336664342,1725004244440,-876.21,0.00024657,4]
[336664343,1725004244449,-876.21,0.00024657,4]
[336664344,1725004244458,-876.21,0.00024657,4]
[336664345,1725004244467,-876.21,0.00024657,4]
[336664346,1725004244477,-876.21,0.00024657,4]
[336664347,1725004244486,-500.0,0.00024657,4]
[336664348,1725004244495,-876.40366714,0.00024657,4]
[336664349,1725004244506,-501.50155985,0.00024657,4]
[336664350,1725004244517,-500.0,0.00024657,4]
[336664351,1725004244526,-500.0,0.00024657,4]
[336664352,1725004244536,-500.0,0.00024657,4]
[336664353,1725004244545,-506.95486806,0.00024657,4]
[336664354,1725004244555,-500.0,0.00024657,4]
[336664355,1725004244564,-500.0,0.00024657,4]
[336664356,1725004244573,-500.0,0.00024657,4]
[336664357,1725004244582,-500.0,0.00024657,4]
[336664358,1725004244591,-500.0,0.00024657,4]
[336664359,1725004244600,-500.0,0.00024657,4]
[336664360,1725004244609,-500.0,0.00024657,4]
[336664361,1725004244619,-500.0,0.00024657,4]
[336664362,1725004244628,-500.0,0.00024657,4]
[336664363,1725004244638,-500.0,0.00024657,4]
[336664364,1725004244647,-500.0,0.00024657,4]
[336664365,1725004244656,-500.0,0.00024657,4]
[336664366,1725004244667,-500.0,0.00024657,4]
[336664367,1725004244675,-500.0,0.00024657,4]
[336664368,1725004244684,-500.65827257,0.00024657,4]
[336664369,1725004244694,-500.0,0.00024657,4]
[336664370,1725004244703,-500.0,0.00024657,4]
[336664371,1725004244712,-500.0,0.00024657,4]
[336664372,1725004244721,-500.0,0.00024657,4]
[336664373,1725004244731,-500.0,0.00024657,4]
[336664374,1725004244740,-500.0,0.00024657,4]
[336664375,1725004244749,-317.21795313,0.00024657,4]
[336664376,1725004244763,-500.0,0.00024657,4]
[336664377,1725004244773,-500.0,0.00024657,4]
[336664378,1725004244783,-500.0,0.00024657,4]
[336664379,1725004244792,-500.0,0.00024657,4]
[336664380,1725004244801,-500.0,0.00024657,4]
[336664381,1725004244811,-500.0,0.00024657,4]
[336664382,1725004244820,-500.0,0.00024657,4]
[336664383,1725004244829,-500.0,0.00024657,4]
[336664384,1725004244840,-923.961822,0.00024657,4]
[336664385,1725004244849,-500.0,0.00024657,4]
[336664386,1725004244859,-923.961822,0.00024657,4]
[336664387,1725004244868,-923.961822,0.00024657,4]
[336664388,1725004244877,-500.0,0.00024657,4]
[336664389,1725004244887,-923.961822,0.00024657,4]
[336664390,1725004244895,-500.0,0.00024657,4]
[336664391,1725004244904,-348.64,0.00024657,4]
[336664392,1725004244914,-500.0,0.00024657,4]
[336664393,1725004244923,-923.961822,0.00024657,4]
[336664394,1725004244932,-923.961822,0.00024657,4]
[336664395,1725004244941,-923.961822,0.00024657,4]
[336664396,1725004244950,-923.961822,0.00024657,4]
[336664397,1725004244958,-923.961822,0.00024657,4]
[336664398,1725004244967,-500.0,0.00024657,4]
[336664399,1725004244976,-500.0,0.00024657,4]
[336664400,1725004244985,-923.961822,0.00024657,4]
[336664401,1725004244995,-500.0,0.00024657,4]
[336664402,1725004245007,-923.961822,0.00024657,4]
[336664403,1725004245016,-500.0,0.00024657,4]
[336664404,1725004245025,-192.82,0.00024657,4]
[336664405,1725004245034,-923.961822,0.00024657,4]
[336664406,1725004245043,-500.0,0.00024657,4]
[336664407,1725004245052,-523.02,0.00024657,4]
[336664408,1725004245061,-923.961822,0.00024657,4]
[336664409,1725004245070,-500.0,0.00024657,4]
[336664410,1725004245080,-217.636045,0.00024657,4]
[336664411,1725004245089,-923.961822,0.00024657,4]
[336664412,1725004245098,-923.961822,0.00024657,4]
[336664413,1725004245107,-923.961822,0.00024657,4]
[336664414,1725004245116,-923.961822,0.00024657,4]
[336664415,1725004245125,-923.961822,0.00024657,4]
[336664416,1725004245135,-923.961822,0.00024657,4]
[336664417,1725004245143,-923.961822,0.00024657,4]
[336664418,1725004245153,-500.0,0.00024657,4]
[336664419,1725004245162,-500.0,0.00024657,4]
[336664420,1725004245172,-599.32,0.00024657,4]
[336664421,1725004245181,-500.0,0.00024657,4]
[336664422,1725004245190,-862.814066,0.00024657,4]
[336664423,1725004245200,-862.814066,0.00024657,4]
[336664424,1725004245209,-862.814066,0.00024657,4]
[336664425,1725004245219,-862.814066,0.00024657,4]
[336664426,1725004245228,-862.814066,0.00024657,4]
[336664427,1725004245238,-862.814066,0.00024657,4]
[336664428,1725004245247,-862.814066,0.00024657,4]
[336664429,1725004245258,-862.814066,0.00024657,4]
[336664430,1725004245267,-500.0,0.00024657,4]
[336664431,1725004245277,-862.814066,0.00024657,4]
[336664432,1725004245286,-500.0,0.00024657,4]
[336664433,1725004245295,-862.814066,0.00024657,4]
[336664434,1725004245305,-862.814066,0.00024657,4]
[336664435,1725004245314,-862.814066,0.00024657,4]
[336664436,1725004245324,-862.814066,0.00024657,4]
[336664437,1725004245333,-500.0,0.00024657,4]
[336664438,1725004245342,-862.814066,0.00024657,4]
[336664439,1725004245351,-862.814066,0.00024657,4]
[336664440,1725004245360,-862.814066,0.00024657,4]
[336664441,1725004245370,-500.0,0.00024657,4]
[336664442,1725004245379,-862.814066,0.00024657,4]
[336664443,1725004245388,-862.814066,0.00024657,4]
[336664444,1725004245397,-862.814066,0.00024657,4]
[336664445,1725004245407,-862.814066,0.00024657,4]
[336664446,1725004245416,-500.0,0.00024657,4]
[336664447,1725004245426,-500.0,0.00024657,4]
[336664448,1725004245436,-500.0,0.00024657,4]
[336664449,1725004245447,-500.0,0.00024657,4]
[336664450,1725004245458,-500.0,0.00024657,4]
[336664451,1725004245468,-500.8560061,0.00024657,2]
[336664452,1725004245477,-500.0,0.00024657,4]
[336664453,1725004245486,-500.0,0.00024657,4]
[336664454,1725004245495,-875.0,0.00024657,4]
[336664455,1725004245504,-875.0,0.00024657,4]
[336664456,1725004245513,-875.0,0.00024657,4]
[336664457,1725004245522,-500.0,0.00024657,4]
[336664458,1725004245531,-875.0,0.00024657,4]
[336664459,1725004245540,-500.0,0.00024657,4]
[336664460,1725004245549,-875.0,0.00024657,4]
[336664461,1725004245558,-875.0,0.00024657,4]
[336664462,1725004245567,-875.0,0.00024657,4]
[336664463,1725004245576,-875.0,0.00024657,4]
[336664464,1725004245585,-875.0,0.00024657,4]
[336664465,1725004245594,-875.0,0.00024657,4]
[336664466,1725004245604,-875.0,0.00024657,4]
[336664467,1725004245613,-875.0,0.00024657,4]
[336664468,1725004245621,-875.0,0.00024657,4]
[336664469,1725004245631,-875.0,0.00024657,4]
[336664470,1725004245641,-875.0,0.00024657,4]
[336664471,1725004245649,-500.0,0.00024657,4]
[336664472,1725004245659,-500.0,0.00024657,4]
[336664473,1725004245668,-875.0,0.00024657,4]
[336664474,1725004245677,-875.0,0.00024657,4]